[Event "Senior Men Russian Championship 2022_HL"]
[Site "Saint-Petersburg, Russia"]
[Date "2022.09.29"]
[Round "6.10"]
[White "Nikitinyh, Boris"]
[Black "Osmolny, Vladimir I."]
[Result "0-1"]
[TimeControl "40+30"]
[WhiteElo "1853"]
[BlackElo "2092"]

1. d4 {[%clk 01:30:59]} {[%emt 00:00:01]} d5 {[%clk 01:30:59]} 2. Nf3 {[%clk
01:31:27]} {[%emt 00:00:02]} Nc6 {[%clk 01:31:27]} {[%emt 00:00:03]} 3. e3
{[%clk 01:31:56]} Bg4 {[%clk 01:31:56]} 4. Nbd2 {[%clk 01:32:24]} {[%emt
00:00:02]} e6 {[%clk 01:32:24]} {[%emt 00:00:01]} 5. Be2 {[%clk 01:32:53]}
{[%emt 00:00:02]} Nf6 {[%clk 01:32:53]} {[%emt 00:00:01]} 6. O-O {[%clk
01:33:21]} {[%emt 00:00:02]} Be7 {[%clk 01:33:22]} {[%emt 00:00:01]} 7. c4
{[%clk 01:33:49]} {[%emt 00:00:02]} O-O {[%clk 01:33:50]} {[%emt 00:00:02]} 8.
a3 {[%clk 01:34:18]} a5 {[%clk 01:34:18]} {[%emt 00:00:02]} 9. h3 {[%clk
01:34:47]} {[%emt 00:00:01]} Bh5 {[%clk 01:34:46]} {[%emt 00:00:02]} 10. cxd5
{[%clk 01:35:11]} {[%emt 00:00:07]} exd5 {[%clk 01:35:14]} {[%emt 00:00:02]} 11.
Re1 {[%clk 01:35:38]} {[%emt 00:00:02]} Bd6 {[%clk 01:35:39]} {[%emt 00:00:05]}
12. b3 {[%clk 01:36:06]} {[%emt 00:00:02]} Qe7 {[%clk 01:36:08]} {[%emt
00:00:01]} 13. Bb2 {[%clk 01:36:31]} {[%emt 00:00:06]} Rae8 {[%clk 01:36:36]}
{[%emt 00:00:02]} 14. Nh4 {[%clk 01:36:59]} {[%emt 00:00:02]} Bxe2 {[%clk
01:37:04]} {[%emt 00:00:02]} 15. Qxe2 {[%clk 01:37:27]} {[%emt 00:00:02]} g6
{[%clk 01:37:32]} {[%emt 00:00:02]} 16. Nhf3 {[%clk 01:37:55]} {[%emt
00:00:02]} h6 {[%clk 01:38:00]} {[%emt 00:00:01]} 17. Rec1 {[%clk 01:38:19]}
{[%emt 00:00:07]} Qe6 {[%clk 01:38:29]} 18. Qb5 {[%clk 01:38:47]} {[%emt
00:00:02]} Rb8 {[%clk 01:38:58]} {[%emt 00:00:01]} 19. Qf1 {[%clk 01:39:14]}
{[%emt 00:00:02]} Nd7 {[%clk 01:39:25]} {[%emt 00:00:03]} 20. Ne1 {[%clk
01:39:42]} {[%emt 00:00:02]} Ne7 {[%clk 01:39:54]} {[%emt 00:00:02]} 21. Nd3
{[%clk 01:40:09]} {[%emt 00:00:03]} b6 {[%clk 01:40:22]} {[%emt 00:00:02]} 22.
Nf3 {[%clk 01:40:37]} {[%emt 00:00:01]} f6 {[%clk 01:40:51]} {[%emt 00:00:02]}
23. b4 {[%clk 01:41:06]} {[%emt 00:00:01]} a4 {[%clk 01:41:19]} {[%emt
00:00:02]} 24. b5 {[%clk 01:41:35]} {[%emt 00:00:01]} g5 {[%clk 01:41:47]} 25.
Nh2 {[%clk 01:42:03]} {[%emt 00:00:02]} f5 {[%clk 01:42:16]} {[%emt 00:00:02]}
26. Qd1 {[%clk 01:42:32]} Ra8 {[%clk 01:42:43]} {[%emt 00:00:03]} 27. Nf3
{[%clk 01:42:58]} {[%emt 00:00:02]} Ng6 {[%clk 01:43:11]} {[%emt 00:00:04]} 28.
Nde5 {[%clk 01:43:24]} {[%emt 00:00:02]} Rf6 {[%clk 01:43:40]} {[%emt
00:00:04]} 29. Nxg6 {[%clk 01:43:53]} {[%emt 00:00:01]} Rxg6 {[%clk 01:44:07]}
{[%emt 00:00:02]} 30. Ne5 {[%clk 01:44:20]} {[%emt 00:00:03]} Rg7 {[%clk
01:44:34]} {[%emt 00:00:02]} 31. Rc6 {[%clk 01:44:49]} {[%emt 00:00:04]} g4
{[%clk 01:45:02]} {[%emt 00:00:01]} 32. h4 {[%clk 01:45:17]} {[%emt 00:00:02]}
g3 {[%clk 01:45:30]} {[%emt 00:00:01]} 33. fxg3 {[%clk 01:45:46]} {[%emt
00:00:02]} Rxg3 {[%clk 01:45:57]} {[%emt 00:00:02]} 34. Qe1 {[%clk 01:46:14]}
{[%emt 00:00:03]} Rg7 {[%clk 01:46:26]} 35. Qf2 {[%clk 01:46:41]} {[%emt
00:00:03]} Kh7 {[%clk 01:46:54]} {[%emt 00:00:02]} 36. h5 {[%clk 01:47:10]}
{[%emt 00:00:01]} Rg5 {[%clk 01:47:22]} {[%emt 00:00:01]} 37. Ng6 {[%clk
01:47:37]} {[%emt 00:00:03]} Qe4 {[%clk 01:47:51]} {[%emt 00:00:02]} 38. Rxd6
{[%clk 01:48:04]} {[%emt 00:00:02]} cxd6 {[%clk 01:48:17]} {[%emt 00:00:05]} 39.
Rc1 {[%clk 01:48:32]} {[%emt 00:00:02]} Ra7 {[%clk 01:48:45]} {[%emt 00:00:02]}
40. Nf4 {[%clk 02:19:00]} {[%emt 00:00:02]} Nf6 {[%clk 02:19:13]} {[%emt
00:00:02]} 41. Nh3 {[%clk 02:19:28]} {[%emt 00:00:02]} Rxh5 {[%clk 02:19:42]}
{[%emt 00:00:01]} 42. Nf4 {[%clk 02:19:57]} {[%emt 00:00:02]} Rg5 {[%clk
02:20:08]} {[%emt 00:00:03]} 43. Nh3 {[%clk 02:20:25]} {[%emt 00:00:01]} Rg8
{[%clk 02:20:34]} {[%emt 00:00:04]} 44. Rf1 {[%clk 02:20:53]} {[%emt 00:00:02]}
Rag7 {[%clk 02:21:03]} {[%emt 00:00:01]} 45. Qxf5+ {[%clk 02:21:21]} {[%emt
00:00:03]} Qxf5 {[%clk 02:21:29]} {[%emt 00:00:04]} 46. Rxf5 {[%clk 02:21:49]}
{[%emt 00:00:02]} Rxg2+ {[%clk 02:21:56]} {[%emt 00:00:03]} 47. Kf1 {[%clk
02:22:15]} {[%emt 00:00:04]} Ne4 {[%clk 02:22:25]} {[%emt 00:00:01]} 48. Rf7+
{[%clk 02:22:43]} {[%emt 00:00:02]} Kh8 {[%clk 02:22:53]} {[%emt 00:00:02]} 49.
Bc1 {[%clk 02:23:12]} {[%emt 00:00:02]} Rc2 {[%clk 02:23:21]} 0-1

[Event "Senior Men Russian Championship 2022_HL"]
[Site "Saint-Petersburg, Russia"]
[Date "2022.09.29"]
[Round "6.4"]
[White "Balashov, Yuri S"]
[Black "Kozlov, Oleg"]
[Result "1-0"]
[TimeControl "40+30"]
[WhiteElo "2395"]
[BlackElo "2279"]

1. e4 {[%clk 01:30:58]} {[%emt 00:00:01]} c5 {[%clk 01:30:59]} {[%emt
00:00:02]} 2. Nf3 {[%clk 01:31:27]} {[%emt 00:00:01]} e6 {[%clk 01:31:28]} 3.
d4 {[%clk 01:31:55]} {[%emt 00:00:01]} cxd4 {[%clk 01:31:57]} {[%emt 00:00:02]}
4. Nxd4 {[%clk 01:32:24]} {[%emt 00:00:02]} Nc6 {[%clk 01:32:25]} {[%emt
00:00:02]} 5. Nc3 {[%clk 01:32:52]} a6 {[%clk 01:32:54]} {[%emt 00:00:02]} 6.
Be2 {[%clk 01:33:19]} {[%emt 00:00:02]} Qc7 {[%clk 01:33:23]} 7. O-O {[%clk
01:33:47]} {[%emt 00:00:02]} Nf6 {[%clk 01:33:51]} {[%emt 00:00:02]} 8. Kh1
{[%clk 01:34:15]} {[%emt 00:00:02]} b5 {[%clk 01:34:20]} 9. Nxc6 {[%clk
01:34:44]} {[%emt 00:00:01]} dxc6 {[%clk 01:34:48]} {[%emt 00:00:03]} 10. f4
{[%clk 01:35:11]} {[%emt 00:00:02]} b4 {[%clk 01:35:16]} {[%emt 00:00:02]} 11.
e5 {[%clk 01:35:39]} {[%emt 00:00:02]} bxc3 {[%clk 01:35:45]} {[%emt 00:00:01]}
12. exf6 {[%clk 01:36:07]} {[%emt 00:00:02]} gxf6 {[%clk 01:36:12]} {[%emt
00:00:02]} 13. Qd4 {[%clk 01:36:35]} {[%emt 00:00:02]} cxb2 {[%clk 01:36:35]}
{[%emt 00:00:07]} 14. Bxb2 {[%clk 01:37:03]} {[%emt 00:00:02]} Be7 {[%clk
01:37:01]} {[%emt 00:00:05]} 15. Qf2 {[%clk 01:37:26]} {[%emt 00:00:07]} Rb8
{[%clk 01:37:29]} {[%emt 00:00:02]} 16. Bc3 {[%clk 01:37:54]} {[%emt 00:00:02]}
c5 {[%clk 01:37:57]} {[%emt 00:00:02]} 17. Qg3 {[%clk 01:38:22]} {[%emt
00:00:01]} Kf8 {[%clk 01:38:26]} {[%emt 00:00:02]} 18. Qh4 {[%clk 01:38:50]}
{[%emt 00:00:02]} h5 {[%clk 01:38:54]} {[%emt 00:00:02]} 19. Bxf6 {[%clk
01:39:17]} {[%emt 00:00:03]} Bb7 {[%clk 01:39:18]} {[%emt 00:00:05]} 20. Rad1
{[%clk 01:39:44]} {[%emt 00:00:03]} Rh6 {[%clk 01:39:47]} {[%emt 00:00:02]} 21.
Bg5 {[%clk 01:40:10]} {[%emt 00:00:05]} Rh7 {[%clk 01:40:15]} 22. Bd3 {[%clk
01:40:38]} {[%emt 00:00:01]} f5 {[%clk 01:40:44]} {[%emt 00:00:02]} 23. Bc4
{[%clk 01:41:07]} Be4 {[%clk 01:41:11]} {[%emt 00:00:03]} 24. Bxe6 {[%clk
01:41:36]} Qb7 {[%clk 01:41:30]} {[%emt 00:00:11]} 25. Qg3 {[%clk 01:42:05]}
{[%emt 00:00:01]} Rg7 {[%clk 01:41:56]} {[%emt 00:00:04]} 26. Bh6 {[%clk
01:42:33]} {[%emt 00:00:02]} Bh4 {[%clk 01:42:22]} {[%emt 00:00:03]} 27. Qxg7+
{[%emt 00:00:04]} Qxg7 {[%clk 01:42:50]} 28. Bxg7+ {[%clk 01:43:29]} {[%emt
00:00:02]} Kxg7 {[%clk 01:43:14]} {[%emt 00:00:06]} 29. Rd7+ {[%clk 01:43:58]}
Kh6 {[%clk 01:43:39]} {[%emt 00:00:05]} 30. Bd5 {[%clk 01:44:27]} 1-0

[Event "Senior Men Russian Championship 2022_HL"]
[Site "Saint-Petersburg, Russia"]
[Date "2022.09.29"]
[Round "6.6"]
[White "Zhelnin, Vladimir V"]
[Black "Filipenko, Alexander V"]
[Result "1/2-1/2"]
[TimeControl "40+30"]
[WhiteElo "2344"]
[BlackElo "2171"]

1. d4 {[%clk 01:30:58]} {[%emt 00:00:02]} d5 {[%clk 01:30:59]} 2. Nf3 {[%clk
01:31:26]} {[%emt 00:00:02]} Nf6 {[%clk 01:31:28]} {[%emt 00:00:01]} 3. g3
{[%clk 01:31:55]} {[%emt 00:00:02]} c6 {[%clk 01:31:57]} 4. Bg2 {[%clk
01:32:23]} Bf5 {[%clk 01:32:26]} {[%emt 00:00:01]} 5. O-O {[%clk 01:32:50]}
{[%emt 00:00:03]} e6 {[%clk 01:32:54]} {[%emt 00:00:02]} 6. c4 {[%clk
01:33:19]} {[%emt 00:00:01]} Be7 {[%clk 01:33:22]} {[%emt 00:00:02]} 7. Nc3
{[%clk 01:33:47]} {[%emt 00:00:02]} h6 {[%clk 01:33:51]} {[%emt 00:00:02]} 8.
Qb3 {[%clk 01:34:16]} {[%emt 00:00:02]} Qb6 {[%clk 01:34:19]} {[%emt 00:00:01]}
9. c5 {[%clk 01:34:45]} {[%emt 00:00:01]} Qxb3 {[%clk 01:34:48]} {[%emt
00:00:01]} 10. axb3 {[%clk 01:35:12]} {[%emt 00:00:02]} a6 {[%clk 01:35:17]}
{[%emt 00:00:01]} 11. b4 {[%clk 01:35:41]} 1/2-1/2

[Event "Senior Men Russian Championship 2022_HL"]
[Site "Saint-Petersburg, Russia"]
[Date "2022.09.29"]
[Round "6.5"]
[White "Vul, Arkadi Eremeevich"]
[Black "Kalegin, Evgenij"]
[Result "1/2-1/2"]
[TimeControl "40+30"]
[WhiteElo "2181"]
[BlackElo "2386"]

1. Nf3 {[%clk 01:30:53]} {[%emt 00:00:07]} Nf6 {[%clk 01:30:59]} {[%emt
00:00:02]} 2. c4 {[%clk 01:31:22]} {[%emt 00:00:01]} g6 {[%emt 00:00:04]} 3. g3
{[%clk 01:31:49]} Bg7 {[%clk 01:31:56]} {[%emt 00:00:01]} 4. d4 {[%clk
01:32:17]} {[%emt 00:00:02]} O-O {[%clk 01:32:24]} {[%emt 00:00:03]} 5. Bg2
{[%clk 01:32:43]} {[%emt 00:00:04]} d6 {[%clk 01:32:53]} 6. O-O {[%clk
01:33:09]} {[%emt 00:00:03]} Nbd7 {[%clk 01:33:21]} {[%emt 00:00:02]} 7. Nc3
{[%clk 01:33:37]} {[%emt 00:00:02]} e5 {[%clk 01:33:50]} 8. e4 {[%clk
01:34:06]} {[%emt 00:00:01]} c6 {[%clk 01:34:19]} {[%emt 00:00:01]} 9. h3
{[%clk 01:34:34]} {[%emt 00:00:02]} exd4 {[%clk 01:34:47]} {[%emt 00:00:02]} 10.
Nxd4 {[%clk 01:35:02]} {[%emt 00:00:02]} Qb6 {[%clk 01:35:15]} {[%emt
00:00:02]} 11. Nc2 {[%clk 01:35:31]} {[%emt 00:00:02]} Qc7 {[%clk 01:35:44]} 12.
Be3 {[%clk 01:35:59]} {[%emt 00:00:02]} Re8 {[%clk 01:36:12]} {[%emt 00:00:02]}
13. Re1 {[%clk 01:36:27]} {[%emt 00:00:01]} b6 {[%clk 01:36:40]} {[%emt
00:00:02]} 14. Rc1 {[%clk 01:36:55]} {[%emt 00:00:02]} Bb7 {[%clk 01:37:09]}
{[%emt 00:00:02]} 15. Qd2 {[%clk 01:37:23]} {[%emt 00:00:02]} Rad8 {[%clk
01:37:37]} {[%emt 00:00:02]} 16. f4 {[%clk 01:37:51]} {[%emt 00:00:02]} h5
{[%clk 01:38:05]} {[%emt 00:00:01]} 17. Bf2 {[%clk 01:38:19]} {[%emt 00:00:02]}
a5 {[%clk 01:38:34]} 18. b3 {[%clk 01:38:45]} {[%emt 00:00:04]} Nc5 {[%clk
01:39:03]} {[%emt 00:00:01]} 19. Nd4 {[%clk 01:39:13]} {[%emt 00:00:02]} Bh6
{[%clk 01:39:31]} {[%emt 00:00:02]} 20. Re2 {[%clk 01:39:42]} Re7 {[%clk
01:40:00]} {[%emt 00:00:01]} 21. Rce1 {[%clk 01:40:11]} {[%emt 00:00:02]} Rde8
{[%clk 01:40:28]} {[%emt 00:00:01]} 22. Nc2 {[%clk 01:40:39]} {[%emt 00:00:02]}
Bg7 {[%clk 01:40:56]} {[%emt 00:00:02]} 23. Bd4 {[%clk 01:41:07]} {[%emt
00:00:02]} Ne6 {[%clk 01:41:24]} {[%emt 00:00:02]} 24. Bf2 {[%clk 01:41:35]}
{[%emt 00:00:02]} Nc5 {[%clk 01:41:53]} {[%emt 00:00:01]} 25. Bd4 {[%clk
01:42:04]} {[%emt 00:00:01]} 1/2-1/2

[Event "Senior Men Russian Championship 2022_HL"]
[Site "Saint-Petersburg, Russia"]
[Date "2022.09.29"]
[Round "6.1"]
[White "Ionov, Sergey"]
[Black "Loginov, Valery A"]
[Result "1/2-1/2"]
[TimeControl "40+30"]
[WhiteElo "2513"]
[BlackElo "2478"]

1. e4 {[%clk 01:30:58]} {[%emt 00:00:02]} c5 {[%clk 01:31:00]} 2. Nf3 {[%clk
01:31:26]} {[%emt 00:00:02]} d6 {[%clk 01:31:28]} {[%emt 00:00:01]} 3. Bb5+
{[%clk 01:31:54]} {[%emt 00:00:02]} Bd7 {[%clk 01:31:57]} {[%emt 00:00:01]} 4.
Bxd7+ {[%clk 01:32:23]} {[%emt 00:00:02]} Qxd7 {[%clk 01:32:26]} {[%emt
00:00:01]} 5. c4 {[%clk 01:32:51]} {[%emt 00:00:02]} Nc6 {[%clk 01:32:55]} 6.
d4 {[%clk 01:33:19]} {[%emt 00:00:02]} cxd4 {[%clk 01:33:22]} {[%emt 00:00:02]}
7. Nxd4 {[%clk 01:33:42]} {[%emt 00:00:08]} g6 {[%clk 01:33:50]} {[%emt
00:00:02]} 8. Nc3 {[%clk 01:34:11]} {[%emt 00:00:01]} Bg7 {[%clk 01:34:18]}
{[%emt 00:00:02]} 9. Be3 {[%clk 01:34:39]} {[%emt 00:00:02]} Nf6 {[%clk
01:34:46]} {[%emt 00:00:02]} 10. f3 {[%clk 01:35:07]} {[%emt 00:00:01]} O-O
{[%clk 01:35:14]} {[%emt 00:00:03]} 11. O-O {[%clk 01:35:35]} {[%emt 00:00:02]}
e6 {[%clk 01:35:42]} {[%emt 00:00:01]} 12. Qd2 {[%clk 01:36:04]} {[%emt
00:00:02]} Rfd8 {[%clk 01:36:10]} {[%emt 00:00:02]} 13. Rfd1 {[%clk 01:36:32]}
{[%emt 00:00:02]} d5 {[%clk 01:36:39]} {[%emt 00:00:01]} 14. exd5 {[%clk
01:37:00]} {[%emt 00:00:02]} 1/2-1/2

[Event "Senior Men Russian Championship 2022_HL"]
[Site "Saint-Petersburg, Russia"]
[Date "2022.09.29"]
[Round "6.9"]
[White "Kasantsev, Anatolij B."]
[Black "Mamoshin, Valery"]
[Result "0-1"]
[TimeControl "40+30"]
[WhiteElo "1908"]
[BlackElo "2203"]

1. d4 {[%clk 01:30:58]} {[%emt 00:00:02]} Nf6 {[%clk 01:30:58]} {[%emt
00:00:02]} 2. c4 {[%clk 01:31:26]} {[%emt 00:00:02]} e6 {[%clk 01:31:27]} 3.
Nc3 {[%clk 01:31:54]} {[%emt 00:00:02]} Bb4 {[%clk 01:31:55]} {[%emt 00:00:03]}
4. Qc2 {[%clk 01:32:23]} c5 {[%clk 01:32:23]} {[%emt 00:00:02]} 5. dxc5 {[%clk
01:32:51]} {[%emt 00:00:02]} Qa5 {[%clk 01:32:52]} 6. Bd2 {[%clk 01:33:16]}
{[%emt 00:00:05]} Na6 {[%clk 01:33:20]} {[%emt 00:00:02]} 7. a3 {[%clk
01:33:45]} {[%emt 00:00:01]} Bxc5 {[%clk 01:33:46]} {[%emt 00:00:03]} 8. Rc1
{[%clk 01:34:14]} {[%emt 00:00:01]} Qd8 {[%clk 01:34:14]} {[%emt 00:00:03]} 9.
Nf3 {[%clk 01:34:43]} O-O {[%clk 01:34:41]} {[%emt 00:00:03]} 10. b4 {[%clk
01:35:12]} {[%emt 00:00:02]} Be7 {[%clk 01:35:09]} {[%emt 00:00:01]} 11. e4
{[%clk 01:35:40]} d6 {[%clk 01:35:32]} {[%emt 00:00:08]} 12. Be2 {[%clk
01:36:09]} {[%emt 00:00:01]} b6 {[%clk 01:36:00]} {[%emt 00:00:03]} 13. O-O
{[%clk 01:36:35]} {[%emt 00:00:02]} Bb7 {[%clk 01:36:29]} {[%emt 00:00:02]} 14.
Rfd1 {[%clk 01:37:01]} {[%emt 00:00:04]} Qb8 {[%clk 01:36:51]} {[%emt
00:00:02]} 15. Nd4 {[%clk 01:37:21]} {[%emt 00:00:16]} Nc7 {[%clk 01:37:20]}
{[%emt 00:00:01]} 16. f3 {[%clk 01:37:49]} {[%emt 00:00:02]} Rd8 {[%clk
01:37:48]} {[%emt 00:00:02]} 17. Be3 {[%clk 01:38:15]} {[%emt 00:00:04]} Rd7
{[%clk 01:38:17]} {[%emt 00:00:02]} 18. Qa4 {[%clk 01:38:43]} {[%emt 00:00:02]}
Qd8 {[%clk 01:38:46]} 19. Nc6 {[%clk 01:39:11]} {[%emt 00:00:02]} Bxc6 {[%clk
01:39:15]} {[%emt 00:00:02]} 20. Qxc6 {[%clk 01:39:39]} {[%emt 00:00:02]} Rc8
{[%clk 01:39:42]} {[%emt 00:00:02]} 21. Qa4 {[%clk 01:40:07]} {[%emt 00:00:02]}
h6 {[%clk 01:40:10]} {[%emt 00:00:02]} 22. Rd2 {[%clk 01:40:35]} {[%emt
00:00:03]} e5 {[%clk 01:40:39]} 23. Rcd1 {[%clk 01:41:03]} {[%emt 00:00:02]}
Ne6 {[%clk 01:41:08]} {[%emt 00:00:02]} 24. Nd5 {[%clk 01:41:31]} {[%emt
00:00:02]} Nxd5 {[%clk 01:41:36]} 25. cxd5 {[%clk 01:41:58]} {[%emt 00:00:04]}
Bg5 {[%clk 01:42:05]} 26. Bxg5 {[%clk 01:42:25]} {[%emt 00:00:03]} Nxg5 {[%clk
01:42:33]} {[%emt 00:00:02]} 27. h4 {[%clk 01:42:53]} {[%emt 00:00:02]} Nh7
{[%clk 01:43:01]} {[%emt 00:00:02]} 28. f4 {[%clk 01:43:16]} {[%emt 00:00:07]}
Rc3 {[%clk 01:43:29]} {[%emt 00:00:03]} 29. fxe5 {[%clk 01:43:44]} {[%emt
00:00:02]} Re7 {[%clk 01:43:52]} {[%emt 00:00:07]} 30. exd6 {[%clk 01:44:13]}
{[%emt 00:00:01]} Qxd6 {[%clk 01:44:20]} {[%emt 00:00:02]} 31. Rc2 {[%clk
01:44:40]} {[%emt 00:00:02]} Re3 {[%clk 01:44:49]} 32. Bd3 {[%clk 01:45:08]}
{[%emt 00:00:02]} f5 {[%clk 01:45:17]} {[%emt 00:00:03]} 33. Qc6 {[%clk
01:45:37]} Qg3 {[%clk 01:45:45]} {[%emt 00:00:02]} 34. Bf1 {[%clk 01:46:05]}
{[%emt 00:00:01]} Nf6 {[%clk 01:46:11]} {[%emt 00:00:05]} 35. Qc8+ {[%clk
01:46:32]} {[%emt 00:00:03]} Re8 {[%clk 01:46:40]} 36. Qc7 {[%clk 01:46:59]}
{[%emt 00:00:03]} f4 {[%clk 01:47:09]} 37. Rf2 {[%clk 01:47:27]} {[%emt
00:00:02]} R3xe4 {[%clk 01:47:35]} {[%emt 00:00:04]} 38. Rf3 {[%clk 01:47:55]}
{[%emt 00:00:03]} Qxh4 {[%clk 01:48:03]} {[%emt 00:00:01]} 39. d6 {[%clk
01:48:22]} {[%emt 00:00:03]} Ng4 {[%clk 01:48:32]} {[%emt 00:00:01]} 40. Rh3
{[%clk 02:18:50]} {[%emt 00:00:02]} Qf2+ {[%clk 02:19:01]} {[%emt 00:00:01]} 41.
Kh1 {[%clk 02:19:19]} {[%emt 00:00:02]} Re3 {[%clk 02:19:29]} 42. Qc4+ {[%clk
02:19:47]} {[%emt 00:00:01]} Kh8 {[%clk 02:19:54]} {[%emt 00:00:06]} 43. Rh5
{[%clk 02:20:08]} {[%emt 00:00:09]} R3e5 {[%clk 02:20:21]} {[%emt 00:00:03]} 44.
Rh3 {[%clk 02:20:37]} {[%emt 00:00:01]} Ne3 {[%clk 02:20:50]} 45. d7 {[%clk
02:21:05]} {[%emt 00:00:03]} Nxc4 {[%clk 02:21:17]} 46. dxe8=Q+ {[%clk
02:21:30]} {[%emt 00:00:05]} Rxe8 {[%clk 02:21:46]} {[%emt 00:00:02]} 47. Bxc4
{[%clk 02:21:56]} {[%emt 00:00:04]} Re1+ {[%clk 02:22:15]} 48. Rxe1 {[%clk
02:22:24]} {[%emt 00:00:02]} Qxe1+ {[%clk 02:22:43]} {[%emt 00:00:02]} 49. Kh2
{[%clk 02:22:52]} {[%emt 00:00:01]} g5 {[%clk 02:23:10]} {[%emt 00:00:03]} 0-1

[Event "Senior Men Russian Championship 2022_HL"]
[Site "Saint-Petersburg, Russia"]
[Date "2022.09.30"]
[Round "7.1"]
[White "Ponfilenok, Vladimir"]
[Black "Loginov, Valery A"]
[Result "1/2-1/2"]
[TimeControl "40+30"]
[WhiteElo "2298"]
[BlackElo "2478"]

1. d4 {[%clk 01:30:59]} {[%emt 01:51:56]} Nf6 {[%clk 01:30:50]} {[%emt
00:00:11]} 2. Bg5 {[%clk 01:31:22]} {[%emt 00:00:06]} Ne4 {[%clk 01:31:08]}
{[%emt 00:00:12]} 3. Bf4 {[%clk 01:31:49]} {[%emt 00:00:03]} d5 {[%clk
01:31:28]} {[%emt 00:00:11]} 4. e3 {[%clk 01:32:01]} {[%emt 00:00:17]} c5
{[%clk 01:31:50]} {[%emt 00:00:08]} 5. Nd2 {[%clk 01:31:30]} {[%emt 00:01:00]}
Nxd2 {[%clk 01:30:13]} {[%emt 00:02:09]} 6. Qxd2 {[%clk 01:31:57]} {[%emt
00:00:03]} Nc6 {[%clk 01:30:33]} {[%emt 00:00:10]} 7. Nf3 {[%clk 01:31:55]}
{[%emt 00:00:31]} cxd4 {[%clk 01:26:36]} {[%emt 00:04:28]} 8. exd4 {[%clk
01:32:09]} {[%emt 00:00:16]} Bf5 {[%clk 01:26:04]} {[%emt 00:01:02]} 9. Bd3
{[%clk 01:28:52]} {[%emt 00:03:46]} Bxd3 {[%clk 01:25:21]} {[%emt 00:01:12]} 10.
Qxd3 {[%clk 01:29:19]} {[%emt 00:00:04]} e6 {[%clk 01:25:39]} {[%emt 00:00:12]}
11. O-O {[%clk 01:19:25]} {[%emt 00:10:24]} Be7 {[%clk 01:25:38]} {[%emt
00:00:31]} 12. c3 {[%clk 01:07:30]} {[%emt 00:12:26]} O-O {[%clk 01:23:29]}
{[%emt 00:02:39]} 13. Rae1 {[%clk 01:06:41]} {[%emt 00:01:18]} a6 {[%clk
01:18:57]} {[%emt 00:05:02]} 14. Ne5 {[%clk 01:04:02]} {[%emt 00:03:09]} Rc8
{[%clk 01:17:33]} {[%emt 00:01:54]} 15. Re3 {[%clk 01:03:28]} {[%emt 00:01:02]}
Nxe5 {[%clk 01:14:59]} {[%emt 00:03:07]} 16. Bxe5 {[%clk 00:56:18]} {[%emt
00:07:39]} Rc6 {[%clk 01:14:07]} {[%emt 00:01:22]} 17. Rh3 {[%clk 00:54:14]}
{[%emt 00:02:34]} g6 {[%clk 01:13:02]} {[%emt 00:01:35]} 18. Re1 {[%clk
00:51:13]} {[%emt 00:03:31]} f6 {[%clk 01:10:56]} {[%emt 00:02:36]} 19. Bf4
{[%clk 00:50:51]} {[%emt 00:00:51]} Qd7 {[%clk 01:10:40]} {[%emt 00:00:47]} 20.
Qe2 {[%clk 00:44:23]} {[%emt 00:06:59]} Re8 {[%clk 01:08:22]} {[%emt 00:02:48]}
21. Re3 {[%clk 00:42:35]} {[%emt 00:02:18]} Bf8 {[%clk 01:08:30]} {[%emt
00:00:21]} 22. h4 {[%clk 00:41:42]} {[%emt 00:01:23]} b5 {[%clk 01:05:38]}
{[%emt 00:03:22]} 23. a3 {[%clk 00:42:04]} {[%emt 00:00:08]} Bg7 {[%clk
01:03:03]} {[%emt 00:03:04]} 24. g4 {[%clk 00:39:38]} {[%emt 00:02:56]} e5
{[%clk 01:02:00]} {[%emt 00:01:34]} 25. dxe5 {[%clk 00:38:25]} {[%emt
00:01:43]} fxe5 {[%clk 01:02:24]} {[%emt 00:00:07]} 26. Bxe5 {[%clk 00:38:43]}
{[%emt 00:00:11]} Rxe5 {[%clk 01:02:40]} {[%emt 00:00:15]} 27. Rxe5 {[%clk
00:38:46]} {[%emt 00:00:27]} Bxe5 {[%clk 01:03:03]} {[%emt 00:00:06]} 28. Qxe5
{[%clk 00:38:49]} {[%emt 00:00:27]} Qxg4+ {[%clk 01:03:26]} {[%emt 00:00:07]}
29. Kf1 {[%clk 00:36:04]} {[%emt 00:03:15]} Qh3+ {[%clk 01:03:37]} {[%emt
00:00:19]} 30. Kg1 {[%clk 00:36:30]} {[%emt 00:00:03]} Qg4+ {[%clk 01:04:01]}
{[%emt 00:00:08]} 31. Kf1 {[%clk 00:36:13]} {[%emt 00:00:45]} Qh3+ {[%clk
01:04:24]} {[%emt 00:00:07]} 32. Kg1 {[%clk 00:36:30]} {[%emt 00:00:11]} Qg4+
{[%emt 00:00:06]} 1/2-1/2